[Event "Late-Titled-Tuesday-Blitz-May-14-2024"]
[Site "Chess.com"]
[Date "2024.05.14"]
[Round "3"]
[White "SchmakAttack"]
[Black "Sanan_Sjugirov"]
[Result "0-1"]
[WhiteElo "2781"]
[BlackElo "3046"]
[TimeControl "180+1"]
[EndTime "14:27:24 PDT"]
[Termination "Sanan_Sjugirov won by resignation"]

1. Nf3 {[%clk 0:03:00.9]} 1... Nf6 {[%clk 0:02:59.8]} 2. c4 {[%clk 0:02:59.9]}
2... g6 {[%clk 0:02:59.9]} 3. g3 {[%clk 0:02:59.5]} 3... Bg7 {[%clk 0:03:00.4]}
4. Bg2 {[%clk 0:03:00.2]} 4... O-O {[%clk 0:03:00.9]} 5. O-O {[%clk 0:03:00.9]}
5... d6 {[%clk 0:03:01.5]} 6. d4 {[%clk 0:02:58.3]} 6... Nbd7 {[%clk 0:03:01.6]}
7. Nc3 {[%clk 0:02:57]} 7... e5 {[%clk 0:03:02.1]} 8. h3 {[%clk 0:02:57.2]} 8...
Re8 {[%clk 0:02:56.9]} 9. Qc2 {[%clk 0:02:56.3]} 9... c6 {[%clk 0:02:51.4]} 10.
e4 {[%clk 0:02:49.7]} 10... exd4 {[%clk 0:02:42.2]} 11. Nxd4 {[%clk 0:02:50.6]}
11... Nc5 {[%clk 0:02:35.1]} 12. Be3 {[%clk 0:02:20.4]} 12... Qe7 {[%clk
0:02:30.6]} 13. f3 {[%clk 0:01:54.7]} 13... d5 {[%clk 0:02:23.6]} 14. cxd5
{[%clk 0:01:46.4]} 14... cxd5 {[%clk 0:02:23.2]} 15. Rae1 {[%clk 0:01:14.2]}
15... dxe4 {[%clk 0:02:22.8]} 16. fxe4 {[%clk 0:01:08.6]} 16... Nfxe4 {[%clk
0:01:38.7]} 17. Bf2 {[%clk 0:01:01.1]} 17... Bxd4 {[%clk 0:01:05.7]} 18. Bxd4
{[%clk 0:00:59.7]} 18... Bf5 {[%clk 0:01:06.4]} 19. Qxe4 {[%clk 0:00:26.7]}
19... Nxe4 {[%clk 0:01:07.3]} 0-1

[Event "Late-Titled-Tuesday-Blitz-May-14-2024"]
[Site "Chess.com"]
[Date "2024.05.14"]
[Round "3"]
[White "DeArron_Fox"]
[Black "emeli_chess"]
[Result "1-0"]
[WhiteElo "2550"]
[BlackElo "2419"]
[TimeControl "180+1"]
[EndTime "14:27:35 PDT"]
[Termination "DeArron_Fox won by resignation"]

1. d4 {[%clk 0:03:00.9]} 1... Nf6 {[%clk 0:02:59.3]} 2. c4 {[%clk 0:03:00.8]}
2... e6 {[%clk 0:02:59.5]} 3. Nf3 {[%clk 0:03:00.8]} 3... d5 {[%clk 0:02:59.2]}
4. Nc3 {[%clk 0:03:00.5]} 4... Bb4 {[%clk 0:02:58.8]} 5. Qa4+ {[%clk 0:02:59.9]}
5... Nc6 {[%clk 0:02:58.3]} 6. e3 {[%clk 0:03:00.3]} 6... O-O {[%clk 0:02:56.9]}
7. Qc2 {[%clk 0:03:00.8]} 7... Re8 {[%clk 0:02:53.1]} 8. Bd2 {[%clk 0:03:01]}
8... e5 {[%clk 0:02:38.1]} 9. dxe5 {[%clk 0:02:53.4]} 9... Nxe5 {[%clk
0:02:27.5]} 10. cxd5 {[%clk 0:02:49.1]} 10... Nxd5 {[%clk 0:02:17.2]} 11. Nxd5
{[%clk 0:02:38.6]} 11... Qxd5 {[%clk 0:01:49.5]} 12. Bxb4 {[%clk 0:02:26.4]}
12... Nxf3+ {[%clk 0:01:47.6]} 13. gxf3 {[%clk 0:02:27.3]} 13... Qxf3 {[%clk
0:01:47.3]} 14. Rg1 {[%clk 0:02:26.5]} 14... Bf5 {[%clk 0:01:42.8]} 15. Be2
{[%clk 0:01:41.7]} 15... Rxe3 {[%clk 0:00:57.1]} 16. fxe3 {[%clk 0:01:27.5]}
16... Qxe3 {[%clk 0:00:56.8]} 17. Qc5 {[%clk 0:01:18.5]} 17... Qe4 {[%clk
0:00:46.6]} 18. Bc3 {[%clk 0:01:07.2]} 18... Bg6 {[%clk 0:00:27.5]} 19. Qd4
{[%clk 0:00:55.8]} 1-0

[Event "Late-Titled-Tuesday-Blitz-May-14-2024"]
[Site "Chess.com"]
[Date "2024.05.14"]
[Round "3"]
[White "Aygehovit1992"]
[Black "N_Mullodzhanov"]
[Result "1-0"]
[WhiteElo "2855"]
[BlackElo "2598"]
[TimeControl "180+1"]
[EndTime "14:27:36 PDT"]
[Termination "Aygehovit1992 won by checkmate"]

1. e4 {[%clk 0:03:00.9]} 1... c6 {[%clk 0:02:57.3]} 2. d4 {[%clk 0:03:00.6]}
2... d5 {[%clk 0:02:57.6]} 3. e5 {[%clk 0:03:01.3]} 3... Bf5 {[%clk 0:02:57.5]}
4. Nf3 {[%clk 0:03:02.2]} 4... e6 {[%clk 0:02:57.4]} 5. Be2 {[%clk 0:03:02.8]}
5... c5 {[%clk 0:02:56.4]} 6. Be3 {[%clk 0:03:02.2]} 6... Qb6 {[%clk 0:02:56.2]}
7. Nc3 {[%clk 0:03:01.6]} 7... Nc6 {[%clk 0:02:54.4]} 8. Na4 {[%clk 0:03:00.6]}
8... Qa5+ {[%clk 0:02:54.5]} 9. c3 {[%clk 0:03:00.6]} 9... c4 {[%clk 0:02:54.9]}
10. O-O {[%clk 0:03:00.4]} 10... h6 {[%clk 0:02:54]} 11. b4 {[%clk 0:02:58.7]}
11... Qd8 {[%clk 0:02:52.6]} 12. g3 {[%clk 0:02:46.2]} 12... Nge7 {[%clk
0:02:49.7]} 13. Nc5 {[%clk 0:02:45]} 13... b6 {[%clk 0:02:45.9]} 14. Nb7 {[%clk
0:02:44.7]} 14... Qc7 {[%clk 0:02:33.5]} 15. Nd6+ {[%clk 0:02:44.5]} 15... Kd7
{[%clk 0:02:32.6]} 16. Nxf7 {[%clk 0:02:44.5]} 16... Rg8 {[%clk 0:02:31]} 17.
Nh4 {[%clk 0:02:35.7]} 17... Bh3 {[%clk 0:02:26.9]} 18. Re1 {[%clk 0:02:34.1]}
18... g5 {[%clk 0:02:26.5]} 19. Ng2 {[%clk 0:02:31.2]} 19... Nf5 {[%clk
0:02:23.8]} 20. Bg4 {[%clk 0:02:28.1]} 20... Bxg4 {[%clk 0:02:16.9]} 21. Qxg4
{[%clk 0:02:29]} 21... Kc8 {[%clk 0:01:51]} 22. Qh5 {[%clk 0:02:03.2]} 22... Rg7
{[%clk 0:01:43.5]} 23. Nxh6 {[%clk 0:01:56.9]} 23... Rh7 {[%clk 0:01:36.7]} 24.
Qe8+ {[%clk 0:01:52.5]} 24... Kb7 {[%clk 0:01:36.4]} 25. Qxe6 {[%clk 0:01:51.7]}
25... Nxe3 {[%clk 0:01:35.5]} 26. Nxe3 {[%clk 0:01:47.8]} 26... Rxh6 {[%clk
0:01:35.2]} 27. Qxd5 {[%clk 0:01:48]} 27... Qh7 {[%clk 0:01:21]} 28. b5 {[%clk
0:01:45.1]} 28... Rxh2 {[%clk 0:01:09.8]} 29. Qxc6+ {[%clk 0:01:41.3]} 29... Kb8
{[%clk 0:01:08.5]} 30. Ng4 {[%clk 0:01:38.5]} 30... Rh3 {[%clk 0:00:57.5]} 31.
Nf6 {[%clk 0:01:34.1]} 31... Qc7 {[%clk 0:00:51.6]} 32. Nd7+ {[%clk 0:01:33.2]}
32... Kc8 {[%clk 0:00:51.8]} 33. Qxa8+ {[%clk 0:01:28.3]} 33... Kxd7 {[%clk
0:00:51.8]} 34. Qxf8 {[%clk 0:01:26.4]} 34... Ke6 {[%clk 0:00:45.4]} 35. d5+
{[%clk 0:01:23]} 35... Kxd5 {[%clk 0:00:40.3]} 36. Rad1+ {[%clk 0:01:23]} 36...
Ke6 {[%clk 0:00:39]} 37. Qf6# {[%clk 0:01:22.2]} 1-0

[Event "Late-Titled-Tuesday-Blitz-May-14-2024"]
[Site "Chess.com"]
[Date "2024.05.14"]
[Round "3"]
[White "Redzishchess"]
[Black "Ditman2007"]
[Result "0-1"]
[WhiteElo "2502"]
[BlackElo "2699"]
[TimeControl "180+1"]
[EndTime "14:27:39 PDT"]
[Termination "Ditman2007 won by checkmate"]

1. e4 {[%clk 0:03:00.9]} 1... e6 {[%clk 0:02:43.6]} 2. d4 {[%clk 0:02:54]} 2...
d5 {[%clk 0:02:43.5]} 3. exd5 {[%clk 0:02:54.9]} 3... exd5 {[%clk 0:02:43.6]} 4.
Nf3 {[%clk 0:02:55.8]} 4... Nc6 {[%clk 0:02:42.1]} 5. c3 {[%clk 0:02:47.4]} 5...
Bd6 {[%clk 0:02:42.2]} 6. Bd3 {[%clk 0:02:46.6]} 6... Nge7 {[%clk 0:02:42.4]} 7.
O-O {[%clk 0:02:46.4]} 7... Bg4 {[%clk 0:02:42.6]} 8. h3 {[%clk 0:02:45.6]} 8...
Bh5 {[%clk 0:02:36.5]} 9. Bg5 {[%clk 0:02:32.8]} 9... Qd7 {[%clk 0:02:36.3]} 10.
Nbd2 {[%clk 0:02:32.4]} 10... f6 {[%clk 0:02:33.8]} 11. Bh4 {[%clk 0:02:29]}
11... g5 {[%clk 0:02:30.2]} 12. Bg3 {[%clk 0:02:28.9]} 12... O-O-O {[%clk
0:02:29.9]} 13. Qa4 {[%clk 0:02:02.2]} 13... Bxg3 {[%clk 0:02:18.7]} 14. fxg3
{[%clk 0:02:01.3]} 14... Bg6 {[%clk 0:02:19]} 15. Bb5 {[%clk 0:01:03.3]} 15...
a6 {[%clk 0:02:18.6]} 16. Bxc6 {[%clk 0:01:03.4]} 16... Nxc6 {[%clk 0:02:18.2]}
17. b4 {[%clk 0:01:03.2]} 17... h5 {[%clk 0:02:13.3]} 18. b5 {[%clk 0:01:00.5]}
18... Na7 {[%clk 0:02:13.3]} 19. c4 {[%clk 0:00:33.8]} 19... dxc4 {[%clk
0:02:12.5]} 20. Nxc4 {[%clk 0:00:32.4]} 20... Nxb5 {[%clk 0:02:06.2]} 21. Rac1
{[%clk 0:00:30.8]} 21... Kb8 {[%clk 0:02:03.7]} 22. Qb4 {[%clk 0:00:26.2]} 22...
Nxd4 {[%clk 0:01:57.4]} 23. Nxd4 {[%clk 0:00:17.5]} 23... Qxd4+ {[%clk
0:01:58.3]} 24. Kh2 {[%clk 0:00:18.2]} 24... h4 {[%clk 0:01:50.4]} 25. gxh4
{[%clk 0:00:10.6]} 25... gxh4 {[%clk 0:01:49.8]} 26. Rfd1 {[%clk 0:00:07.1]}
26... Qf4+ {[%clk 0:01:48.7]} 27. Kh1 {[%clk 0:00:07.4]} 27... Be4 {[%clk
0:01:47.1]} 28. Rxd8+ {[%clk 0:00:02.7]} 28... Rxd8 {[%clk 0:01:48]} 29. Qe7
{[%clk 0:00:03.2]} 29... Bxg2+ {[%clk 0:01:44.9]} 30. Kxg2 {[%clk 0:00:03.3]}
30... Rg8+ {[%clk 0:01:44.9]} 31. Kh1 {[%clk 0:00:03.2]} 31... Qf3+ {[%clk
0:01:45.1]} 32. Kh2 {[%clk 0:00:03.8]} 32... Qg2# {[%clk 0:01:45.5]} 0-1

[Event "Late-Titled-Tuesday-Blitz-May-14-2024"]
[Site "Chess.com"]
[Date "2024.05.14"]
[Round "3"]
[White "KChor05"]
[Black "bobo_panda"]
[Result "0-1"]
[WhiteElo "2603"]
[BlackElo "2442"]
[TimeControl "180+1"]
[EndTime "14:27:49 PDT"]
[Termination "bobo_panda won by checkmate"]

1. e4 {[%clk 0:03:00.9]} 1... c5 {[%clk 0:02:59.2]} 2. Nf3 {[%clk 0:02:59.5]}
2... d6 {[%clk 0:02:59.6]} 3. d4 {[%clk 0:02:59]} 3... cxd4 {[%clk 0:03:00.5]}
4. Nxd4 {[%clk 0:02:59.1]} 4... Nf6 {[%clk 0:03:00.3]} 5. Nc3 {[%clk 0:02:58.6]}
5... a6 {[%clk 0:03:00.6]} 6. Be2 {[%clk 0:02:55.3]} 6... e5 {[%clk 0:02:59]} 7.
Nb3 {[%clk 0:02:55.5]} 7... Be7 {[%clk 0:02:58.8]} 8. Be3 {[%clk 0:02:56.2]}
8... O-O {[%clk 0:02:58.5]} 9. O-O {[%clk 0:02:56.2]} 9... Nc6 {[%clk
0:02:57.6]} 10. a4 {[%clk 0:02:48.7]} 10... Be6 {[%clk 0:02:53.1]} 11. Bf3
{[%clk 0:02:38.5]} 11... Nb4 {[%clk 0:02:45.9]} 12. Nd5 {[%clk 0:02:33]} 12...
Nbxd5 {[%clk 0:02:44.2]} 13. exd5 {[%clk 0:02:33.9]} 13... Bf5 {[%clk
0:02:44.4]} 14. Qd2 {[%clk 0:02:25.6]} 14... Rc8 {[%clk 0:02:43.2]} 15. Rfc1
{[%clk 0:02:25.1]} 15... Bg6 {[%clk 0:02:34.9]} 16. Na5 {[%clk 0:02:18.9]} 16...
Qd7 {[%clk 0:02:23.6]} 17. c4 {[%clk 0:02:16]} 17... Ne4 {[%clk 0:02:23.4]} 18.
Qb4 {[%clk 0:02:10]} 18... Rc7 {[%clk 0:02:23.3]} 19. Bb6 {[%clk 0:02:05.1]}
19... Rcc8 {[%clk 0:02:19.9]} 20. Be3 {[%clk 0:02:03.9]} 20... Rc7 {[%clk
0:02:19.9]} 21. Qa3 {[%clk 0:01:58.5]} 21... f5 {[%clk 0:02:18.4]} 22. b4 {[%clk
0:01:51.3]} 22... f4 {[%clk 0:02:16.5]} 23. Bb6 {[%clk 0:01:49.5]} 23... Rcc8
{[%clk 0:02:16.6]} 24. Rd1 {[%clk 0:01:33.9]} 24... Ng5 {[%clk 0:02:12.7]} 25.
c5 {[%clk 0:01:27.5]} 25... Nxf3+ {[%clk 0:02:12.5]} 26. Qxf3 {[%clk 0:01:28.4]}
26... e4 {[%clk 0:02:12.9]} 27. Qb3 {[%clk 0:01:26.9]} 27... f3 {[%clk 0:02:10]}
28. Kh1 {[%clk 0:01:10]} 28... fxg2+ {[%clk 0:02:00.2]} 29. Kg1 {[%clk
0:01:08.7]} 29... Bh4 {[%clk 0:01:59.1]} 30. Rd2 {[%clk 0:01:06.1]} 30... Qf5
{[%clk 0:01:46.1]} 31. c6 {[%clk 0:00:39.1]} 31... Bf6 {[%clk 0:01:33.4]} 32.
Re1 {[%clk 0:00:34.7]} 32... Be5 {[%clk 0:01:33.3]} 33. cxb7 {[%clk 0:00:28.6]}
33... Rc3 {[%clk 0:01:31.7]} 34. Nc6 {[%clk 0:00:14.8]} 34... Bxh2+ {[%clk
0:01:30.8]} 35. Kxh2 {[%clk 0:00:11.7]} 35... Qh3+ {[%clk 0:01:30.5]} 36. Kg1
{[%clk 0:00:12.3]} 36... Qh1# {[%clk 0:01:30.7]} 0-1

[Event "Late-Titled-Tuesday-Blitz-May-14-2024"]
[Site "Chess.com"]
[Date "2024.05.14"]
[Round "3"]
[White "hawes33"]
[Black "Mikhail_Golubev"]
[Result "0-1"]
[WhiteElo "2375"]
[BlackElo "2606"]
[TimeControl "180+1"]
[EndTime "14:27:49 PDT"]
[Termination "Mikhail_Golubev won by resignation"]

1. e4 {[%clk 0:02:54.1]} 1... c5 {[%clk 0:02:59.5]} 2. Nc3 {[%clk 0:02:53.8]}
2... a6 {[%clk 0:02:57.4]} 3. g3 {[%clk 0:02:53.1]} 3... Nc6 {[%clk 0:02:56.7]}
4. Bg2 {[%clk 0:02:53.4]} 4... g6 {[%clk 0:02:56.9]} 5. d3 {[%clk 0:02:53.9]}
5... Bg7 {[%clk 0:02:56.8]} 6. Be3 {[%clk 0:02:54.2]} 6... d6 {[%clk 0:02:56.4]}
7. Qd2 {[%clk 0:02:54.3]} 7... Rb8 {[%clk 0:02:56.1]} 8. Nge2 {[%clk 0:02:54.1]}
8... b5 {[%clk 0:02:55]} 9. Nd1 {[%clk 0:02:52.3]} 9... Nf6 {[%clk 0:02:49.1]}
10. h3 {[%clk 0:02:52]} 10... O-O {[%clk 0:02:46.2]} 11. Bh6 {[%clk 0:02:51.5]}
11... d5 {[%clk 0:02:32.2]} 12. Bxg7 {[%clk 0:02:50.9]} 12... Kxg7 {[%clk
0:02:32.8]} 13. exd5 {[%clk 0:02:47.2]} 13... Nxd5 {[%clk 0:02:32.7]} 14. Nf4
{[%clk 0:02:46.3]} 14... Nxf4 {[%clk 0:02:19.4]} 15. Qxf4 {[%clk 0:02:45.7]}
15... e5 {[%clk 0:02:17.1]} 16. Qd2 {[%clk 0:02:40.4]} 16... Bb7 {[%clk
0:02:08.1]} 17. O-O {[%clk 0:02:39.4]} 17... Nd4 {[%clk 0:02:03.4]} 18. f4
{[%clk 0:02:32.9]} 18... e4 {[%clk 0:01:56.6]} 19. c3 {[%clk 0:02:29.1]} 19...
Nf5 {[%clk 0:01:49]} 20. g4 {[%clk 0:02:12.4]} 20... Nh4 {[%clk 0:01:48.1]} 21.
f5 {[%clk 0:02:05.2]} 21... Nxg2 {[%clk 0:01:47.1]} 22. Qxg2 {[%clk 0:02:04]}
22... exd3 {[%clk 0:01:20.7]} 23. f6+ {[%clk 0:02:03.1]} 23... Kh8 {[%clk
0:01:08.8]} 24. Qd2 {[%clk 0:02:02.3]} 24... Qd5 {[%clk 0:01:00.9]} 25. Ne3
{[%clk 0:01:55.8]} 25... Qh1+ {[%clk 0:00:51.5]} 26. Kf2 {[%clk 0:01:54.7]}
26... Qxh3 {[%clk 0:00:49.6]} 27. Nf5 {[%clk 0:01:13.4]} 27... gxf5 {[%clk
0:00:38.2]} 28. Rh1 {[%clk 0:01:08.7]} 28... Bxh1 {[%clk 0:00:36.2]} 29. Rxh1
{[%clk 0:01:07.4]} 29... Qxh1 {[%clk 0:00:34.7]} 30. Qg5 {[%clk 0:01:07.3]}
30... Rg8 {[%clk 0:00:31.5]} 31. Qg7+ {[%clk 0:01:03.4]} 31... Rxg7 {[%clk
0:00:30.6]} 32. fxg7+ {[%clk 0:01:04.3]} 0-1

[Event "Late-Titled-Tuesday-Blitz-May-14-2024"]
[Site "Chess.com"]
[Date "2024.05.14"]
[Round "3"]
[White "manitodeplomo"]
[Black "jinxy2009"]
[Result "1-0"]
[WhiteElo "2568"]
[BlackElo "2305"]
[TimeControl "180+1"]
[EndTime "14:27:54 PDT"]
[Termination "manitodeplomo won by checkmate"]

1. d4 {[%clk 0:03:00.9]} 1... Nf6 {[%clk 0:02:49.1]} 2. c4 {[%clk 0:03:00.9]}
2... e6 {[%clk 0:02:43.2]} 3. Nf3 {[%clk 0:02:59.6]} 3... d5 {[%clk 0:02:41.4]}
4. Nc3 {[%clk 0:02:58.8]} 4... c6 {[%clk 0:02:34.3]} 5. Bg5 {[%clk 0:02:57.6]}
5... Be7 {[%clk 0:02:32.4]} 6. e3 {[%clk 0:02:56.5]} 6... h6 {[%clk 0:02:22.8]}
7. Bxf6 {[%clk 0:02:54]} 7... Bxf6 {[%clk 0:02:23.3]} 8. Qc2 {[%clk 0:02:53]}
8... O-O {[%clk 0:02:23.2]} 9. O-O-O {[%clk 0:02:51.1]} 9... dxc4 {[%clk
0:02:22.3]} 10. Bxc4 {[%clk 0:02:49.8]} 10... b5 {[%clk 0:02:22.8]} 11. Bd3
{[%clk 0:02:48.7]} 11... Nd7 {[%clk 0:02:23.3]} 12. h4 {[%clk 0:02:48.3]} 12...
Qe7 {[%clk 0:02:17.5]} 13. g4 {[%clk 0:02:46.8]} 13... b4 {[%clk 0:02:03.8]} 14.
Ne4 {[%clk 0:02:44.2]} 14... g6 {[%clk 0:01:57.6]} 15. g5 {[%clk 0:02:42.6]}
15... Bg7 {[%clk 0:01:57.7]} 16. h5 {[%clk 0:02:41.7]} 16... c5 {[%clk 0:01:36]}
17. gxh6 {[%clk 0:02:35]} 17... Bh8 {[%clk 0:01:32.7]} 18. hxg6 {[%clk
0:02:34.4]} 18... fxg6 {[%clk 0:01:32.2]} 19. Rdg1 {[%clk 0:02:20]} 19... cxd4
{[%clk 0:01:20.6]} 20. Rxg6+ {[%clk 0:02:19.2]} 20... Kf7 {[%clk 0:01:20.9]} 21.
Nfg5+ {[%clk 0:02:15.2]} 21... Kxg6 {[%clk 0:01:14.7]} 22. Nd6+ {[%clk
0:02:01.6]} 22... Kxg5 {[%clk 0:00:31.7]} 23. Rg1+ {[%clk 0:01:48.1]} 23... Kf6
{[%clk 0:00:31.6]} 24. Rg6+ {[%clk 0:01:47.4]} 24... Ke5 {[%clk 0:00:31.2]} 25.
Nc4+ {[%clk 0:01:45.4]} 25... Kd5 {[%clk 0:00:30.9]} 26. Be4+ {[%clk 0:01:44.7]}
26... Kc5 {[%clk 0:00:27.6]} 27. Nd2+ {[%clk 0:01:23.1]} 27... Kb5 {[%clk
0:00:15.6]} 28. Qc6+ {[%clk 0:01:20.6]} 28... Ka5 {[%clk 0:00:16]} 29. Nc4#
{[%clk 0:01:09.3]} 1-0

[Event "Late-Titled-Tuesday-Blitz-May-14-2024"]
[Site "Chess.com"]
[Date "2024.05.14"]
[Round "3"]
[White "Rital44"]
[Black "chenxiaoyuer"]
[Result "0-1"]
[WhiteElo "2704"]
[BlackElo "2891"]
[TimeControl "180+1"]
[EndTime "14:27:56 PDT"]
[Termination "chenxiaoyuer won by checkmate"]

1. d4 {[%clk 0:03:00.9]} 1... Nf6 {[%clk 0:03:00.1]} 2. Nc3 {[%clk 0:03:00.7]}
2... d5 {[%clk 0:02:59.7]} 3. Bf4 {[%clk 0:03:00.3]} 3... g6 {[%clk 0:02:59.4]}
4. e3 {[%clk 0:02:59.2]} 4... Bg7 {[%clk 0:02:59.2]} 5. Nb5 {[%clk 0:02:58.1]}
5... Na6 {[%clk 0:02:56.7]} 6. h3 {[%clk 0:02:56.5]} 6... O-O {[%clk 0:02:55]}
7. Nf3 {[%clk 0:02:55.9]} 7... c6 {[%clk 0:02:50.1]} 8. Nc3 {[%clk 0:02:55.3]}
8... Nc7 {[%clk 0:02:44.6]} 9. Ne5 {[%clk 0:02:52.7]} 9... Nd7 {[%clk
0:02:36.9]} 10. Bd3 {[%clk 0:02:43.8]} 10... Nxe5 {[%clk 0:02:28.6]} 11. Bxe5
{[%clk 0:02:42.9]} 11... f6 {[%clk 0:02:28.2]} 12. Bg3 {[%clk 0:02:36.9]} 12...
e5 {[%clk 0:02:28]} 13. O-O {[%clk 0:02:19.8]} 13... Ne6 {[%clk 0:02:21]} 14.
Be2 {[%clk 0:02:07.8]} 14... exd4 {[%clk 0:02:16.9]} 15. exd4 {[%clk 0:02:05.5]}
15... f5 {[%clk 0:02:17.5]} 16. Be5 {[%clk 0:02:04.6]} 16... f4 {[%clk 0:01:53]}
17. Bg4 {[%clk 0:02:02.8]} 17... Bxe5 {[%clk 0:01:41.8]} 18. dxe5 {[%clk
0:02:03.7]} 18... Qg5 {[%clk 0:01:40.6]} 19. Re1 {[%clk 0:01:15.7]} 19... f3
{[%clk 0:01:24.4]} 20. Bxf3 {[%clk 0:01:12.3]} 20... Nf4 {[%clk 0:01:23.1]} 21.
Kh2 {[%clk 0:00:59.4]} 21... Bxh3 {[%clk 0:01:20.6]} 22. gxh3 {[%clk 0:00:46.5]}
22... Qh4 {[%clk 0:01:19.9]} 23. Rf1 {[%clk 0:00:04.6]} 23... Qxh3+ {[%clk
0:01:19.2]} 24. Kg1 {[%clk 0:00:04.4]} 24... Rf5 {[%clk 0:01:20.1]} 25. Ne2
{[%clk 0:00:01.7]} 25... Rh5 {[%clk 0:01:13]} 26. Bg2 {[%clk 0:00:00.6]} 26...
Qxg2# {[%clk 0:01:13.1]} 0-1

[Event "Late-Titled-Tuesday-Blitz-May-14-2024"]
[Site "Chess.com"]
[Date "2024.05.14"]
[Round "3"]
[White "ritanovikova"]
[Black "Walter_White_Poland"]
[Result "0-1"]
[WhiteElo "2160"]
[BlackElo "2399"]
[TimeControl "180+1"]
[EndTime "14:27:56 PDT"]
[Termination "Walter_White_Poland won by resignation"]

1. e4 {[%clk 0:02:59.6]} 1... c5 {[%clk 0:02:59.1]} 2. Nc3 {[%clk 0:02:59.8]}
2... Nc6 {[%clk 0:02:58.9]} 3. d3 {[%clk 0:03:00.7]} 3... g6 {[%clk 0:02:58.9]}
4. Be3 {[%clk 0:03:01.6]} 4... d6 {[%clk 0:02:57.9]} 5. Qd2 {[%clk 0:03:02]}
5... Bg7 {[%clk 0:02:57.6]} 6. g3 {[%clk 0:03:01.9]} 6... Bd7 {[%clk 0:02:51.2]}
7. Bg2 {[%clk 0:03:01.1]} 7... Qc8 {[%clk 0:02:50.3]} 8. h4 {[%clk 0:02:57]}
8... h6 {[%clk 0:02:48.6]} 9. Nd1 {[%clk 0:02:56.4]} 9... e6 {[%clk 0:02:42.1]}
10. c3 {[%clk 0:02:56.1]} 10... Nge7 {[%clk 0:02:41.9]} 11. Ne2 {[%clk
0:02:55.6]} 11... Rb8 {[%clk 0:02:36.8]} 12. d4 {[%clk 0:02:55.3]} 12... b6
{[%clk 0:02:23]} 13. f4 {[%clk 0:02:44.5]} 13... h5 {[%clk 0:02:16.8]} 14. d5
{[%clk 0:02:25.6]} 14... exd5 {[%clk 0:02:05.4]} 15. exd5 {[%clk 0:02:26.5]}
15... Na5 {[%clk 0:02:04.9]} 16. b3 {[%clk 0:02:26.2]} 16... Nf5 {[%clk
0:02:01]} 17. Bf2 {[%clk 0:02:25.5]} 17... O-O {[%clk 0:01:59.6]} 18. O-O {[%clk
0:02:17.9]} 18... b5 {[%clk 0:01:55.3]} 19. Rc1 {[%clk 0:02:10.4]} 19... Qc7
{[%clk 0:01:44.5]} 20. Ne3 {[%clk 0:02:09.6]} 20... Rfe8 {[%clk 0:01:42]} 21.
Nxf5 {[%clk 0:01:47.8]} 21... Bxf5 {[%clk 0:01:41.1]} 22. Rfe1 {[%clk
0:01:39.9]} 22... Re7 {[%clk 0:01:37.1]} 23. Kh2 {[%clk 0:01:37.6]} 23... Rbe8
{[%clk 0:01:36.7]} 24. Ng1 {[%clk 0:01:37.5]} 24... Bg4 {[%clk 0:01:26.9]} 25.
Bf3 {[%clk 0:01:33.6]} 25... f5 {[%clk 0:01:23.8]} 26. Nh3 {[%clk 0:01:27.6]}
26... Bxf3 {[%clk 0:01:21.1]} 27. Ng5 {[%clk 0:01:27.6]} 27... Bg4 {[%clk
0:01:16.7]} 28. Ne6 {[%clk 0:01:24.1]} 28... Qc8 {[%clk 0:01:11.1]} 29. c4
{[%clk 0:01:23.2]} 29... b4 {[%clk 0:01:08.1]} 30. a3 {[%clk 0:01:21.5]} 30...
Nxb3 {[%clk 0:01:07.4]} 31. Qc2 {[%clk 0:01:16.3]} 31... Nxc1 {[%clk 0:01:06.3]}
32. Rxc1 {[%clk 0:01:17.2]} 32... Rxe6 {[%clk 0:01:05.5]} 33. dxe6 {[%clk
0:01:17.1]} 33... bxa3 {[%clk 0:00:58.2]} 34. Qd3 {[%clk 0:01:11]} 34... a2
{[%clk 0:00:53.2]} 35. Qd5 {[%clk 0:01:07.1]} 35... Qxe6 {[%clk 0:00:51.7]} 36.
Re1 {[%clk 0:01:06.4]} 36... Qxd5 {[%clk 0:00:50.4]} 37. Rxe8+ {[%clk
0:01:06.1]} 37... Kf7 {[%clk 0:00:50.5]} 0-1

[Event "Late-Titled-Tuesday-Blitz-May-14-2024"]
[Site "Chess.com"]
[Date "2024.05.14"]
[Round "3"]
[White "ELPRIMO0O0"]
[Black "SandwichOSaumon"]
[Result "0-1"]
[WhiteElo "2518"]
[BlackElo "2329"]
[TimeControl "180+1"]
[EndTime "14:27:58 PDT"]
[Termination "SandwichOSaumon won by checkmate"]

1. e4 {[%clk 0:02:55.9]} 1... e5 {[%clk 0:02:53.8]} 2. Nf3 {[%clk 0:02:54.6]}
2... Nc6 {[%clk 0:02:54.7]} 3. Nc3 {[%clk 0:02:50.6]} 3... Bb4 {[%clk
0:02:41.4]} 4. Nd5 {[%clk 0:02:49.5]} 4... Nf6 {[%clk 0:02:37.1]} 5. Nxb4 {[%clk
0:02:48.6]} 5... Nxb4 {[%clk 0:02:38]} 6. c3 {[%clk 0:02:36.3]} 6... Nc6 {[%clk
0:02:37.6]} 7. d4 {[%clk 0:02:30.5]} 7... Qe7 {[%clk 0:02:18.1]} 8. d5 {[%clk
0:02:26.1]} 8... Nb8 {[%clk 0:02:17.9]} 9. Bd3 {[%clk 0:02:26.3]} 9... d6 {[%clk
0:02:18.2]} 10. h3 {[%clk 0:02:25]} 10... Nbd7 {[%clk 0:02:14.8]} 11. Bg5 {[%clk
0:02:17.2]} 11... h6 {[%clk 0:02:14.4]} 12. Bh4 {[%clk 0:02:13.8]} 12... g5
{[%clk 0:02:14.3]} 13. Bg3 {[%clk 0:02:14.4]} 13... Nc5 {[%clk 0:02:14.4]} 14.
b4 {[%clk 0:02:11.8]} 14... Ncxe4 {[%clk 0:02:13.6]} 15. Bxe4 {[%clk 0:02:08.3]}
15... Nxe4 {[%clk 0:02:14.5]} 16. Qb3 {[%clk 0:02:03.2]} 16... f5 {[%clk
0:02:06.9]} 17. Nd2 {[%clk 0:01:51.5]} 17... Nxd2 {[%clk 0:02:04.7]} 18. Kxd2
{[%clk 0:01:52.4]} 18... f4 {[%clk 0:02:03.9]} 19. Bh2 {[%clk 0:01:53]} 19...
Bf5 {[%clk 0:02:04]} 20. f3 {[%clk 0:01:53.3]} 20... O-O {[%clk 0:01:58.8]} 21.
Bg1 {[%clk 0:01:50.6]} 21... e4 {[%clk 0:01:58.9]} 22. Bd4 {[%clk 0:01:46.7]}
22... e3+ {[%clk 0:01:55.7]} 23. Ke2 {[%clk 0:01:45.2]} 23... Qh7 {[%clk
0:01:54.9]} 24. c4 {[%clk 0:01:44.1]} 24... a5 {[%clk 0:01:50.3]} 25. a3 {[%clk
0:01:43.8]} 25... h5 {[%clk 0:01:37.8]} 26. Qc3 {[%clk 0:01:35.3]} 26... b6
{[%clk 0:01:33.5]} 27. c5 {[%clk 0:01:20.8]} 27... axb4 {[%clk 0:01:30.5]} 28.
axb4 {[%clk 0:01:03.7]} 28... bxc5 {[%clk 0:01:30]} 29. bxc5 {[%clk 0:01:03.3]}
29... Rab8 {[%clk 0:01:23]} 30. cxd6 {[%clk 0:00:52.9]} 30... cxd6 {[%clk
0:01:22.6]} 31. Ra7 {[%clk 0:00:53.8]} 31... Qxa7 {[%clk 0:00:48.7]} 32. Bxa7
{[%clk 0:00:52.9]} 32... Rfc8 {[%clk 0:00:49.4]} 33. Qf6 {[%clk 0:00:42.2]}
33... Rc2+ {[%clk 0:00:47.7]} 34. Kf1 {[%clk 0:00:42.7]} 34... Rb1# {[%clk
0:00:47]} 0-1